bitfinex-derivatives/quotes_SOLF0:USTF0_20220102
["timestamp","ask_amount","ask_price","bid_price","bid_amount"]
[1641142663631,11.98217645,177.78,177.73,3.9942087]
[1641142665929,11.98217645,177.78,177.74,3.9942087]
[1641142666732,11.98217645,177.77,177.72,3.9942087]
[1641142666933,18.84717645,177.77,177.72,3.9942087]
[1641142668334,11.98217645,177.77,177.72,3.9942087]
[1641142669134,16.83317645,177.77,177.72,3.9942087]
[1641142669635,3.99456193,177.75,177.74,3.9942087]
[1641142670737,4.851,177.77,177.74,3.9942087]
[1641142673142,4.851,177.77,177.75,3.9942087]
[1641142674345,11.98217645,177.79,177.75,3.9942087]
[1641142675344,11.98217645,177.78,177.74,3.9942087]
[1641142676044,4.151,177.79,177.76,3.9942087]
[1641142677044,11.98217645,177.8,177.76,3.9942087]
[1641142677844,11.98217645,177.79,177.74,3.9942087]
[1641142678747,11.98217645,177.77,177.73,31.6589987]
[1641142682849,11.98217645,177.78,177.73,31.6589987]
[1641142686454,11.98217645,177.8,177.76,3.9942087]
[1641142687755,11.98217645,177.8,177.75,3.9942087]
[1641142688555,3.99387826,177.77,177.76,3.9942087]
[1641142689554,3.99387826,177.77,177.74,1.28372205]
[1641142690458,3.99387826,177.77,177.76,3.99426208]
[1641142693060,2.7103408,177.8,177.76,3.99426208]
[1641142693258,14.69251725,177.8,177.76,3.99426208]
[1641142695864,11.98217645,177.78,177.74,3.99426208]
[1641142696663,11.98217645,177.77,177.73,3.99426208]
[1641142696863,16.52317645,177.77,177.73,3.99426208]
[1641142697367,27.66479,177.75,177.73,3.99426208]
[1641142698371,27.66479,177.75,177.72,3.99426208]
[1641142699171,2.7103408,177.74,177.7,3.99426208]
[1641142700272,3.99531703,177.71,177.7,3.99426208]
[1641142700573,10.76431703,177.71,177.7,3.99426208]
[1641142700973,10.76431703,177.71,177.69,1.28372205]
[1641142701675,10.76431703,177.71,177.7,3.99530792]
[1641142704377,10.76431703,177.71,177.66,11.98217645]
[1641142704578,6.769,177.71,177.68,11.98217645]
[1641142705378,6.769,177.71,177.69,11.98217645]
[1641142705578,3.99531703,177.73,177.69,11.98217645]
[1641142706081,6.99531702,177.73,177.69,11.98217645]
[1641142707082,3.99531703,177.73,177.69,11.98217645]
[1641142707484,11.98217645,177.77,177.72,27.66479]
[1641142707683,11.98217645,177.77,177.72,32.11779]
[1641142708082,11.98217645,177.77,177.73,3.0]
[1641142708285,11.98217645,177.77,177.72,32.11779]
[1641142708785,11.98217645,177.82,177.74,11.98217645]
[1641142709685,11.98217645,177.82,177.77,27.66479]
[1641142710087,14.69267365,177.84,177.75,11.98217645]
[1641142711392,11.98217645,177.81,177.73,19.35237858]
[1641142711987,4.319,177.81,177.73,13.2658985]
[1641142712187,11.98320383,177.79,177.73,1.28372205]
[1641142712787,16.9207095,177.81,177.71,11.98217645]
[1641142712989,11.98420783,177.78,177.7,27.66479]
[1641142713989,39.64899783,177.78,177.71,1.28390557]
[1641142714588,39.64899783,177.78,177.7,27.66479]
[1641142714789,2.7104972,177.77,177.7,27.66479]
[1641142714992,7.2844972,177.77,177.7,27.66479]
[1641142715791,4.574,177.77,177.71,1.28390465]
[1641142716592,2.71098367,177.76,177.69,1.28389061]
[1641142717894,11.98420783,177.77,177.73,27.66479]
[1641142718693,11.98318014,177.79,177.74,1.28389061]
[1641142719897,14.69398832,177.8,177.74,4.744]
[1641142720098,31.99014878,177.84,177.78,55.32958]
[1641142720300,31.99014878,177.84,177.78,60.94958]
[1641142720999,31.99014878,177.84,177.79,1.28402327]
[1641142721399,14.69016784,177.85,177.79,1.28402327]
[1641142722001,14.69016784,177.85,177.82,27.66479]
[1641142722600,5.62018771,177.87,177.82,27.66479]
[1641142722801,5.62018771,177.87,177.78,27.66479]
[1641142724003,11.50718771,177.87,177.78,27.66479]
[1641142724403,2.99999999,177.83,177.78,27.66479]
[1641142724603,6.374,177.83,177.78,27.66479]
[1641142725405,6.374,177.83,177.76,27.66479]
[1641142727308,6.374,177.83,177.77,3.0]
[1641142727509,41.87352822,177.88,177.77,3.0]
[1641142727709,41.87352822,177.88,177.76,27.66479]
[1641142728110,31.99014878,177.87,177.79,27.66479]
[1641142729013,9.88337944,177.88,177.79,27.66479]
[1641142730614,31.99014878,177.89,177.8,3.0]
[1641142731215,31.99014878,177.89,177.84,3.0]
[1641142731413,37.60938906,177.9,177.84,8.453]
[1641142731615,37.60938906,177.9,177.84,5.453]
[1641142732715,5.61924028,177.9,177.81,41.6177]
[1641142732913,9.92624028,177.9,177.81,41.6177]
[1641142733415,41.91638906,177.9,177.81,41.6177]
[1641142733616,36.29714878,177.9,177.81,41.6177]
[1641142734217,36.29714878,177.9,177.83,27.66479]
[1641142734518,4.307,177.9,177.83,27.66479]
[1641142734718,31.99014878,177.92,177.83,27.66479]
[1641142735317,9.88337944,177.94,177.83,27.66479]
[1641142736317,9.88337944,177.94,177.87,27.66479]
[1641142738324,9.88337944,177.94,177.83,27.66479]
[1641142738521,16.57937944,177.94,177.83,27.66479]
[1641142742126,31.99014878,177.91,177.83,27.66479]
[1641142742325,27.66479,177.9,177.81,41.6177]
[1641142742526,33.85679,177.9,177.81,41.6177]
[1641142743029,9.88337944,177.89,177.81,41.6177]
[1641142743727,9.88337944,177.89,177.8,27.66479]
[1641142744228,9.88337944,177.89,177.78,39.0355]
[1641142745431,41.87352822,177.89,177.78,39.0355]
[1641142746631,31.99014878,177.87,177.74,55.32958]
[1641142747330,37.85814878,177.87,177.74,55.32958]
[1641142747533,37.85814878,177.87,177.76,3.0]
[1641142748331,37.85814878,177.87,177.78,27.66479]
[1641142748934,2.99999999,177.86,177.78,27.66479]
[1641142749132,2.99999999,177.81,177.74,27.66479]
[1641142749333,2.99999999,177.8,177.71,31.99014878]
[1641142749533,8.53499999,177.81,177.71,31.99014878]
[1641142750034,5.535,177.81,177.71,31.99014878]
[1641142750234,5.535,177.81,177.7,27.66479]
[1641142751533,17.51726874,177.81,177.72,11.98226874]
[1641142753333,5.535,177.81,177.74,11.98226874]
[1641142754434,11.98226874,177.82,177.74,11.98226874]
[1641142754835,45.2685102,177.83,177.74,11.98226874]
[1641142755635,2.99999999,177.81,177.74,11.98226874]
[1641142755838,5.984,177.81,177.74,11.98226874]
[1641142756338,5.984,177.81,177.75,27.66479]
[1641142757438,17.96626874,177.81,177.75,27.66479]
[1641142760639,2.70882724,177.8,177.76,1.28492154]
[1641142762242,2.70882724,177.82,177.76,19.35591385]
[1641142764147,2.70882724,177.82,177.77,3.0]
[1641142764547,2.70882724,177.82,177.78,3.0]
[1641142764748,2.70882724,177.82,177.76,1.28492154]
[1641142765149,6.97982724,177.82,177.76,1.28492154]
[1641142765449,4.271,177.82,177.76,1.28492154]
[1641142765651,4.271,177.82,177.77,11.98226874]
[1641142767351,4.271,177.82,177.76,19.35584642]
[1641142768050,27.66479,177.83,177.76,19.35584642]
[1641142768253,2.70893573,177.81,177.77,3.9938474]
[1641142768450,14.69120447,177.81,177.77,3.9938474]
[1641142769251,18.72726874,177.81,177.76,1.28492154]
[1641142769451,6.745,177.81,177.77,11.98226874]
[1641142771353,6.745,177.81,177.8,3.9931934]
[1641142772555,9.453212,177.81,177.79,3.9931934]
[1641142773454,2.708212,177.8,177.79,3.9931934]
[1641142774053,6.745,177.81,177.79,3.9931934]
[1641142774258,27.66479,177.83,177.79,3.9931934]
[1641142775356,2.70810974,177.82,177.79,3.9931934]
[1641142776157,2.70810974,177.82,177.8,3.9931934]
[1641142779764,27.66479,177.83,177.76,19.35585078]
[1641142779965,27.66479,177.83,177.78,11.98226874]
[1641142781366,27.66479,177.83,177.82,3.99287198]
[1641142781766,27.66479,177.83,177.79,11.98226874]
[1641142782966,32.80179,177.83,177.79,11.98226874]
[1641142783968,2.7082264,177.82,177.8,3.99320256]
[1641142785269,27.66479,177.83,177.76,19.35585078]
[1641142785871,2.7083497,177.82,177.79,3.99331465]
[1641142786069,8.4413497,177.82,177.79,3.99331465]
[1641142786670,2.70835185,177.81,177.76,1.28492154]
[1641142787472,30.66478999,177.83,177.76,1.28492154]
[1641142787672,2.99999999,177.82,177.8,3.99297821]
[1641142787972,36.65878999,177.83,177.8,3.99297821]
[1641142788575,33.65879,177.83,177.76,13.26719028]
[1641142788773,2.70828338,177.81,177.79,3.99325436]
[1641142789673,2.70829396,177.82,177.75,39.64705874]
[1641142790676,45.63869848,177.83,177.79,3.99330283]
[1641142791178,2.70830949,177.82,177.75,39.64705874]
[1641142791978,27.66479,177.83,177.79,3.99325169]
[1641142792580,2.70808782,177.82,177.76,1.28497125]
[1641142793783,39.64401974,177.83,177.79,3.99314812]
[1641142794380,2.70815896,177.82,177.76,1.28497125]
[1641142795386,44.97142477,177.83,177.79,3.99321159]
[1641142795885,2.70823379,177.82,177.76,1.28497125]
[1641142796686,39.64443566,177.83,177.79,3.99321522]
[1641142797384,2.7082253,177.82,177.76,1.28497125]
[1641142797984,27.66479,177.83,177.76,1.28497125]
[1641142798185,39.64438628,177.83,177.79,3.99319876]
[1641142798889,2.70821893,177.82,177.76,1.28497125]
[1641142799889,27.66479,177.83,177.76,1.28497125]
[1641142800090,3.99310589,177.8,177.79,3.99310589]
[1641142800689,3.99288739,177.81,177.76,13.26723999]
[1641142800891,3.99288739,177.81,177.76,19.35585206]
[1641142801092,3.99288739,177.81,177.76,22.35585206]
[1641142801691,27.66479,177.83,177.8,3.99293687]
[1641142801891,14.52119,177.83,177.8,3.99293687]
[1641142802691,14.52119,177.83,177.8,11.98226874]
[1641142802894,3.99226116,177.85,177.8,11.98226874]
[1641142803495,3.99206875,177.86,177.81,11.98226874]
[1641142805195,31.65685875,177.87,177.83,11.98226874]
[1641142806297,3.99206875,177.87,177.83,11.98226874]
[1641142807198,3.99206875,177.87,177.86,27.66479]
[1641142808297,3.99206875,177.87,177.86,28.94976125]
[1641142808499,3.99206875,177.87,177.86,1.28497125]
[1641142809198,20.59840007,177.91,177.86,1.28497125]
[1641142809400,2.99999999,177.87,177.83,11.98226874]
[1641142809599,2.99999999,177.84,177.83,1.28507455]
[1641142809999,10.10934565,177.87,177.83,1.28507455]
[1641142810201,2.99999999,177.86,177.83,1.28507455]
[1641142810600,2.99999999,177.86,177.8,11.98226874]
[1641142810801,11.97931768,177.84,177.77,40.1763]
[1641142811002,11.97931768,177.84,177.76,11.98226874]
[1641142811200,11.97931768,177.84,177.78,27.66479]
[1641142812405,3.99273056,177.82,177.78,27.66479]
[1641142812604,8.14973056,177.82,177.78,27.66479]
[1641142814908,3.99273056,177.82,177.78,39.64705874]
[1641142815808,3.99273056,177.83,177.78,39.64705874]
[1641142816609,3.99273056,177.84,177.8,11.98226874]
[1641142817212,3.99273056,177.84,177.83,27.66479]
[1641142817911,3.99273056,177.87,177.83,27.66479]
[1641142818817,3.99273056,177.87,177.83,39.64705874]
[1641142819314,3.99273056,177.87,177.86,27.66479]
[1641142819713,3.99273056,177.89,177.86,27.66479]
[1641142821619,3.99273056,177.9,177.86,27.66479]
[1641142822018,2.99999999,177.89,177.86,27.66479]
[1641142822217,8.13199999,177.89,177.85,11.98226874]
[1641142822426,5.132,177.89,177.85,11.98226874]
[1641142822627,3.99273056,177.88,177.83,39.64705874]
[1641142823423,3.99273056,177.87,177.83,39.64705874]
[1641142824626,3.99273056,177.87,177.86,3.0]
[1641142824826,3.99273056,177.87,177.86,9.049]
[1641142825026,3.99273056,177.87,177.86,10.04056972]
[1641142825226,3.99273056,177.87,177.86,37.70535972]
[1641142826130,3.99273056,177.87,177.86,33.71379]
[1641142826328,3.99273056,177.88,177.86,33.71379]
[1641142827029,3.99273056,177.88,177.87,3.99124343]
[1641142827829,3.99273056,177.88,177.86,27.66479]
[1641142829232,11.97931768,177.91,177.87,3.99137739]
[1641142829936,11.97931768,177.92,177.88,3.99137739]
[1641142831336,11.97931768,177.92,177.9,27.66479]
[1641142832539,11.97931768,177.94,177.9,31.65616739]
[1641142833338,11.97931768,177.93,177.9,27.66479]
[1641142834538,11.97931768,177.95,177.9,31.65616739]
[1641142835444,11.97931768,177.95,177.91,3.99137739]
[1641142835639,40.9274,177.97,177.91,6.99137739]
[1641142835838,31.99014878,177.99,177.93,3.0]
[1641142836438,31.99014878,177.99,177.91,42.6652]
[1641142836640,11.9707947,177.99,177.91,60.7341217]
[1641142837240,11.9707947,177.99,177.91,18.0689217]
[1641142837441,11.9707947,177.99,177.95,27.66479]
[1641142837642,2.99999999,177.96,177.95,27.66479]
[1641142837844,2.99999999,177.97,177.95,27.66479]
[1641142838343,2.99999999,177.98,177.95,27.66479]
[1641142838543,50.4424,178.01,177.95,27.66479]
[1641142838843,11.25999999,178.01,177.95,27.66479]
[1641142839044,8.26,178.01,177.93,3.99017343]
[1641142839244,2.99999999,177.94,177.9,27.66479]
[1641142839443,8.94799999,177.94,177.86,59.65493878]
[1641142839843,2.99999999,177.89,177.86,59.65493878]
[1641142840044,9.90699999,177.89,177.86,59.65493878]
[1641142840549,9.90699999,177.89,177.86,27.66479]
[1641142840754,6.907,177.89,177.86,27.66479]
[1641142841144,79.02504877,177.97,177.86,27.66479]
[1641142841346,2.99999999,177.95,177.86,27.66479]
[1641142841544,34.99014877,177.96,177.86,27.66479]
[1641142841746,31.99014878,177.96,177.86,27.66479]
[1641142842345,76.02504878,177.97,177.86,27.66479]
[1641142842544,79.02504877,177.97,177.86,27.66479]
[1641142842745,76.02504878,177.97,177.86,27.66479]
[1641142843146,44.0349,177.97,177.86,27.66479]
[1641142843647,2.99999999,177.96,177.9,27.66479]
[1641142843845,50.0069,177.97,177.9,27.66479]
[1641142844249,44.0349,177.97,177.91,3.0]
[1641142844545,3.99034884,177.93,177.9,36.48179]
[1641142845146,3.99034884,177.93,177.9,33.48179]
[1641142845351,3.99034884,177.93,177.9,27.66479]
[1641142846353,3.99034884,177.92,177.9,27.66479]
[1641142846750,3.99034884,177.92,177.91,3.0]
[1641142846953,3.99034884,177.92,177.9,27.66479]
[1641142847154,3.99034884,177.93,177.9,27.66479]
[1641142847454,31.99014878,178.01,177.9,27.66479]
[1641142847455,31.99014878,178.01,177.9,30.66479]
[1641142847652,31.99014878,178.01,178.0,55.32958]
[1641142847853,31.64084992,178.01,178.0,60.02258]
[1641142848054,5.61482313,178.04,178.0,60.02258]
[1641142848552,31.64084992,178.05,178.0,60.02258]
[1641142848754,16.64084992,178.05,178.0,60.02258]
[1641142849351,16.02084992,178.05,178.0,60.02258]
[1641142849553,16.02084992,178.11,178.04,27.66479]
[1641142849756,16.02084992,178.11,178.04,33.01279]
[1641142850855,42.0388,178.16,178.04,33.01279]
[1641142851055,2.70042428,178.16,178.05,1.28684381]
[1641142851456,2.70042428,178.16,178.08,3.0]
[1641142851658,2.70042428,178.16,178.15,55.32958]
[1641142851861,2.70042428,178.16,178.09,42.705]
[1641142852558,2.70042428,178.16,178.05,1.28684381]
[1641142852757,6.87142428,178.16,178.05,4.28684381]
[1641142852958,4.171,178.16,178.09,1.28684381]
[1641142853159,2.99999999,178.14,178.09,1.28684381]
[1641142853359,4.171,178.16,178.09,1.28684381]
[1641142853761,2.99999999,178.15,178.09,1.28684381]
[1641142853961,2.99999999,178.14,178.09,1.28684381]
[1641142854161,2.99999999,178.13,178.08,27.66479]
[1641142854363,2.99999999,178.11,178.06,1.28684381]
[1641142854563,6.284,178.11,178.06,1.28684381]
[1641142855163,2.70042428,178.1,177.98,3.0]
[1641142855363,2.70042428,178.1,177.97,46.00224381]
[1641142855563,2.99999999,178.08,178.01,27.66479]
[1641142855767,5.70042427,178.1,178.01,27.66479]
[1641142856063,2.70042428,178.1,178.01,27.66479]
[1641142856265,5.70042427,178.1,178.01,27.66479]
[1641142856466,2.70042428,178.07,178.02,1.28684381]
[1641142856664,7.91142428,178.07,178.02,1.28684381]
[1641142857266,2.70042428,178.06,178.02,1.28684381]
[1641142857766,8.31477456,178.06,178.02,1.28684381]
[1641142857966,8.31477456,178.06,178.02,1e-08]
[1641142858166,2.70042428,178.06,178.02,1e-08]
[1641142858667,2.70042428,178.06,177.91,3.0]
[1641142858867,2.99999999,178.05,177.91,15.93850327]
[1641142859067,2.70042428,178.06,177.91,15.93850327]
[1641142859666,33.36521427,178.06,177.97,27.66479]
[1641142859867,8.61482312,178.04,177.97,27.66479]
[1641142860067,8.61482312,178.04,177.94,27.66479]
[1641142860068,2.99999999,178.0,177.94,27.66479]
[1641142860269,6.385,178.0,177.94,27.66479]
[1641142860468,5.61671534,177.98,177.94,27.66479]
[1641142860668,6.385,178.0,177.94,27.66479]
[1641142861072,6.385,178.0,177.85,47.94011743]
[1641142861268,5.61655761,177.99,177.85,50.94011743]
[1641142861668,5.61655761,177.99,177.89,27.66479]
[1641142862471,5.61655761,177.99,177.9,6.09331972]
[1641142864071,44.05690612,178.01,177.9,6.09331972]
[1641142864670,47.05690611,178.01,177.9,6.09331972]
[1641142865071,5.61639989,178.0,177.9,6.09331972]
[1641142865273,11.35339989,178.0,177.9,6.09331972]
[1641142865472,5.6171886,177.98,177.9,6.09331972]
[1641142865771,5.737,178.0,177.9,6.09331972]
[1641142865972,14.3535576,178.0,177.9,6.09331972]
[1641142866173,11.35355761,178.0,177.9,6.09331972]
[1641142866371,11.97107827,177.99,177.91,11.97107827]
[1641142867173,5.6171886,177.98,177.91,11.97107827]
[1641142867374,5.6171886,177.98,177.92,11.97107827]
[1641142867572,2.99999999,177.96,177.92,11.97107827]
[1641142867772,2.99999999,177.93,177.92,11.97107827]
[1641142867972,2.99999999,177.93,177.9,6.09331972]
[1641142868173,2.99999999,177.94,177.9,6.09331972]
[1641142868373,2.99999999,177.93,177.78,3.0]
[1641142868574,2.99999999,177.93,177.83,42.0611]
[1641142869074,48.76333534,177.95,177.83,42.0611]
[1641142869075,2.99999999,177.92,177.83,42.0611]
[1641142869274,7.45099999,177.92,177.83,42.0611]
[1641142869474,4.451,177.92,177.84,6.09180802]
[1641142869774,2.99999999,177.88,177.84,6.09180802]
[1641142869976,9.88799999,177.88,177.84,6.09180802]
[1641142870477,9.88799999,177.88,177.83,6.09180802]
[1641142870678,12.50834565,177.88,177.83,6.09180802]
[1641142870878,2.99999999,177.85,177.83,6.09180802]
[1641142871080,12.50834565,177.88,177.83,6.09180802]
[1641142871081,2.99999999,177.84,177.83,6.09180802]
[1641142871282,8.26199999,177.84,177.8,41.77746071]
[1641142871494,2.99999999,177.81,177.8,41.77746071]
[1641142871687,55.32958,177.81,177.75,47.94011743]
[1641142871887,27.66479,177.81,177.75,31.9377329]
[1641142872283,5.62208354,177.82,177.75,31.9377329]
[1641142872483,5.262,177.84,177.75,31.9377329]
[1641142873284,5.262,177.84,177.72,44.6232]
[1641142873685,5.262,177.84,177.78,27.66479]
[1641142873885,2.99999999,177.87,177.78,27.66479]
[1641142874785,2.99999999,177.86,177.78,27.66479]
[1641142874985,9.73699999,177.86,177.78,27.66479]
[1641142875384,2.99999999,177.84,177.78,27.66479]
[1641142875585,2.99999999,177.85,177.76,9.83953258]
[1641142875785,27.66479,177.85,177.75,27.66479]
[1641142876286,30.66478999,177.85,177.75,27.66479]
[1641142876486,27.66479,177.85,177.75,27.66479]
[1641142876890,30.66478999,177.85,177.75,27.66479]
[1641142877088,27.66479,177.85,177.75,27.66479]
[1641142877689,6.737,177.86,177.79,27.66479]
[1641142877888,8.62034564,177.88,177.79,27.66479]
[1641142878789,5.62034565,177.88,177.79,27.66479]
[1641142878990,8.62034564,177.88,177.79,27.66479]
[1641142879290,2.99999999,177.87,177.79,27.66479]
[1641142879489,6.245,177.87,177.79,27.66479]
[1641142879690,9.24499999,177.87,177.79,27.66479]
[1641142880189,6.245,177.87,177.79,27.66479]
[1641142883391,27.66479,177.91,177.79,27.66479]
[1641142883592,30.66478999,177.91,177.79,27.66479]
[1641142883791,30.66478999,177.91,177.82,27.66479]
[1641142884193,27.66479,177.91,177.82,27.66479]
[1641142884791,30.66478999,177.91,177.82,27.66479]
[1641142885491,2.99999999,177.9,177.82,27.66479]
[1641142885691,9.15799999,177.9,177.82,27.66479]
[1641142885892,2.99999999,177.89,177.82,27.66479]
[1641142886091,2.99999999,177.89,177.79,27.66479]
[1641142886291,50.21929999,177.9,177.79,27.66479]
[1641142886893,47.2193,177.9,177.79,27.66479]
[1641142888994,50.21929999,177.9,177.79,27.66479]
[1641142889695,47.2193,177.9,177.79,27.66479]
[1641142891198,5.62034565,177.88,177.79,27.66479]
[1641142892700,5.62034565,177.88,177.8,9.08479337]
[1641142893900,5.62034565,177.88,177.83,27.66479]
[1641142898600,2.708009,177.87,177.84,1.28378525]
[1641142899902,10.36434565,177.88,177.84,1.28378525]
[1641142900102,5.62034565,177.88,177.84,1.28378525]
[1641142901200,41.0613,177.9,177.84,1.28378525]
[1641142901401,11.97538276,177.91,177.83,11.97538276]
[1641142902502,2.70788533,177.91,177.84,11.97538276]
[1641142903004,2.70788533,177.91,177.85,11.97538276]
[1641142907605,2.70788533,177.91,177.85,3.0]
[1641142908006,2.70788533,177.91,177.9,27.66479]
[1641142908706,3.99058349,177.92,177.9,27.66479]
[1641142909808,11.97538276,177.96,177.9,27.66479]
[1641142910010,11.97538276,177.97,177.94,27.66479]
[1641142911412,2.99999999,178.02,177.94,27.66479]
[1641142912511,2.99999999,177.97,177.95,1.28399658]
[1641142912711,2.99999999,177.96,177.95,1.28399658]
[1641142912912,5.149,177.97,177.95,1.28399658]
[1641142913115,2.99999999,177.96,177.95,1.28399658]
[1641142913315,17.6810671,177.96,177.91,1.28399658]
[1641142913512,14.68106711,177.96,177.91,1.28399658]
[1641142914214,27.66479,177.95,177.91,1.28399658]
[1641142914415,39.64017276,177.95,177.87,11.97538276]
[1641142914914,2.99999999,177.94,177.87,11.97538276]
[1641142915117,5.70568434,177.94,177.88,11.97538276]
[1641142915315,2.99999999,177.93,177.88,11.97538276]
[1641142915515,2.99999999,177.91,177.88,11.97538276]
[1641142915715,9.68999999,177.93,177.88,11.97538276]
[1641142916215,2.70568435,177.92,177.85,19.34360026]
[1641142917015,2.70568435,177.92,177.85,6.08422092]
[1641142917215,2.70568435,177.92,177.84,19.34360026]
[1641142918018,2.70568435,177.92,177.85,11.97538276]
[1641142918218,2.70568435,177.92,177.88,27.66479]
[1641142919019,2.70568435,177.94,177.89,1.28399658]
[1641142919817,14.68106711,177.94,177.89,1.28399658]
[1641142922418,11.97538276,177.93,177.89,1.28399658]
[1641142923723,17.50938276,177.94,177.89,1.28399658]
[1641142924523,2.70568435,177.93,177.89,1.28399658]
[1641142925121,11.97538276,177.96,177.88,27.66479]
[1641142925522,11.97538276,177.95,177.88,27.66479]
[1641142926324,38.42513637,177.97,177.88,27.66479]
[1641142926523,14.67890063,177.96,177.89,1.28413812]
[1641142927022,11.97227906,177.94,177.88,79.55189]
[1641142927824,12.58566239,177.96,177.88,79.55189]
[1641142928023,11.97365646,177.93,177.89,1.28409221]
[1641142929026,2.70662157,177.96,177.88,42.64017276]
[1641142929223,14.67855467,177.96,177.88,49.14717276]
[1641142929424,14.67855467,177.96,177.89,3.0]
[1641142929825,54.2429,177.99,177.9,1.28418167]
[1641142930023,2.70614246,177.98,177.9,13.25956443]
[1641142930227,2.70614246,177.98,177.91,27.66479]
[1641142931124,66.21387241,177.99,177.91,39.64017276]
[1641142931724,2.70597081,177.98,177.92,1.28418167]
[1641142932329,2.70597081,177.98,177.94,27.66479]
[1641142932725,27.66479,178.01,177.94,27.66479]
[1641142932924,11.97050769,177.99,177.94,27.66479]
[1641142933525,12.58209897,178.0,177.95,1.28418167]
[1641142934127,11.9705815,177.99,177.94,27.66479]
[1641142934328,11.9705815,177.99,177.91,39.64017276]
[1641142934329,18.0405815,177.99,177.91,11.97538276]
[1641142934526,2.99999999,177.97,177.91,11.97538276]
[1641142934725,2.99999999,177.97,177.89,11.97538276]
[1641142934928,14.67735697,177.98,177.89,11.97538276]
[1641142935826,11.97136417,177.97,177.89,11.97538276]
[1641142936428,11.97136417,177.97,177.89,39.64017276]
[1641142936629,2.7059928,177.98,177.89,39.64017276]
[1641142937427,11.97150884,177.97,177.9,1.28416862]
[1641142937628,16.85550884,177.97,177.9,1.28416862]
[1641142938330,16.85550884,177.97,177.89,27.66479]
[1641142938531,7.88399999,177.97,177.89,27.66479]
[1641142938832,4.884,177.97,177.89,27.66479]
[1641142939133,2.69623461,177.96,177.89,27.66479]
[1641142939332,2.69623461,177.96,177.89,21.27945967]
[1641142940736,9.18823461,177.96,177.89,21.27945967]
[1641142941536,2.69623461,177.95,177.9,1.28453771]
[1641142941738,14.66774345,177.95,177.9,1.28453771]
[1641142944843,2.69623461,177.95,177.9,1.28453771]
[1641142945443,2.69623461,177.96,177.9,1.28453771]
[1641142946346,14.66774345,177.97,177.9,1.28453771]
[1641142947445,14.66774345,177.97,177.9,4.28453771]
[1641142948047,14.66774345,177.97,177.9,9.98053771]
[1641142948247,2.69623461,177.97,177.92,11.92459459]
[1641142948846,27.66479,177.98,177.92,11.92459459]
[1641142949047,27.66479,177.98,177.92,13.2091323]
[1641142950047,2.70495897,177.97,177.92,11.92459459]
[1641142950648,27.66479,177.98,177.92,1.28453771]
[1641142951350,27.66479,177.98,177.91,1.28453771]
[1641142953151,27.66479,177.98,177.9,22.26886599]
[1641142953351,27.66479,177.98,177.91,3.0]
[1641142953551,27.66479,177.98,177.9,22.26886599]
[1641142953850,27.66479,177.98,177.92,1.28453771]
[1641142955050,27.66479,177.98,177.92,4.28453771]
[1641142955551,27.66479,177.98,177.93,1.28453771]
[1641142956550,27.66479,177.98,177.92,19.26886599]
[1641142960255,27.66479,177.98,177.92,1.28453771]
[1641142966065,27.66479,177.98,177.92,4.28453771]
[1641142966466,27.66479,177.98,177.92,1.28453771]
[1641142968168,27.66479,177.98,177.95,11.92459459]
[1641142970170,3.98926857,177.99,177.95,14.92459459]
[1641142970369,11.97150884,178.03,177.95,20.53610942]
[1641142970571,3.9889501,178.01,177.99,3.0]
[1641142970770,5.01e-05,178.01,178.0,27.66479]
[1641142971171,5.01e-05,178.01,178.0,30.66479]
[1641142971587,11.97150884,178.05,178.0,30.66479]
[1641142971771,11.97150884,178.09,178.0,46.9592836]
[1641142972673,11.97150884,178.09,178.03,27.66479]
[1641142974076,27.66479,178.11,178.03,27.66479]
[1641142977977,2.68229785,178.1,178.03,27.66479]
[1641142978277,8.54229785,178.1,178.03,27.66479]
[1641142979581,5.86,178.1,178.03,27.66479]
[1641142979779,5.86,178.1,177.93,57.1923]
[1641142979980,5.86,178.1,177.94,70.78839459]
[1641142980282,2.68270398,178.09,177.94,60.13945312]
[1641142980481,2.68270398,178.09,177.94,57.13945312]
[1641142980881,27.66479,178.05,177.95,27.66479]
[1641142981083,33.14879,178.05,177.95,27.66479]
[1641142981282,45.12029884,178.05,177.97,11.92459459]
[1641142981983,2.68270398,178.04,177.96,19.28662127]
[1641142982181,2.68270398,178.04,177.97,3.0]
[1641142982381,2.68270398,178.04,177.98,3.0]
[1641142982587,2.68270398,178.04,177.96,22.28662127]
[1641142982783,31.93775138,178.09,178.0,39.58938459]
[1641142982784,11.97150884,178.09,178.0,39.58938459]
[1641142982982,14.97150883,178.09,178.0,39.58938459]